fUSD/lending_fUSD_20241225
["ID","MTS","AMOUNT","RATE_DAILY","PERIOD"]
[346616078,1735127440250,-765.7,0.0001101,2]
[346616079,1735127440261,-500.0,0.0001101,2]
[346616080,1735127440271,-500.0,0.0001101,2]
[346616081,1735127440281,-500.0,0.0001101,2]
[346616082,1735127440291,-500.0,0.0001101,2]
[346616083,1735127440302,-500.0,0.0001101,2]
[346616084,1735127440312,-500.0,0.0001101,2]
[346616085,1735127440322,-500.0,0.0001101,2]
[346616086,1735127440332,-500.0,0.0001101,2]
[346616087,1735127440343,-500.0,0.0001101,2]
[346616088,1735127440353,-500.0,0.0001101,2]
[346616089,1735127440363,-500.0,0.0001101,2]
[346616090,1735127440375,-500.0,0.0001101,2]
[346616091,1735127440386,-500.0,0.0001101,2]
[346616092,1735127440397,-500.0,0.0001101,2]
[346616093,1735127440408,-500.0,0.0001101,2]
[346616094,1735127440420,-500.0,0.0001101,2]
[346616095,1735127440430,-500.0,0.0001101,2]
[346616096,1735127440441,-500.0,0.0001101,2]
[346616097,1735127440451,-500.0,0.0001101,2]
[346616098,1735127440462,-500.0,0.0001101,2]
[346616099,1735127440472,-500.0,0.0001101,2]
[346616100,1735127440487,-500.0,0.0001101,2]
[346616101,1735127440497,-410.0651354,0.0001101,2]
[346616102,1735127440508,-500.0,0.0001101,2]
[346616103,1735127440518,-559.01229316,0.0001101,2]
[346616104,1735127440528,-500.0,0.0001101,2]
[346616105,1735127440538,-500.0,0.0001101,2]
[346616106,1735127440548,-500.0,0.0001101,2]
[346616107,1735127441071,-500.0,0.0001101,2]
[346616108,1735127441105,-500.0,0.0001101,2]
[346616109,1735127441125,-500.0,0.0001101,2]
[346616110,1735127441138,-877.6,0.0001101,2]
[346616111,1735127441148,-500.0,0.0001101,2]
[346616112,1735127441157,-500.0,0.0001101,2]
[346616113,1735127441167,-500.0,0.0001101,2]
[346616114,1735127441177,-500.0,0.0001101,2]
[346616115,1735127441186,-500.0,0.0001101,2]
[346616116,1735127441195,-500.0,0.0001101,2]
[346616117,1735127441205,-500.0,0.0001101,2]
[346616118,1735127441214,-960.19,0.0001101,2]
[346616119,1735127441224,-3471.41,0.0001101,2]
[346616120,1735127441238,-500.0,0.0001101,2]
[346616121,1735127441247,-500.0,0.0001101,2]
[346616122,1735127441257,-566.44,0.0001101,2]
[346616123,1735127441266,-500.0,0.0001101,2]
[346616124,1735127441275,-500.0,0.0001101,2]
[346616125,1735127441285,-500.5091436,0.0001101,2]
[346616126,1735127441295,-770.63,0.0001101,2]
[346616127,1735127441306,-500.0,0.0001101,2]
[346616128,1735127441316,-1343.6,0.0001101,2]
[346616129,1735127441325,-500.0,0.0001101,2]
[346616130,1735127441335,-500.0,0.0001101,2]
[346616131,1735127441345,-680.0,0.0001101,2]
[346616132,1735127441354,-1183.51,0.0001101,2]
[346616133,1735127441364,-500.0,0.0001101,2]
[346616134,1735127441373,-500.0,0.0001101,2]
[346616135,1735127441383,-500.0,0.0001101,2]
[346616136,1735127441392,-500.0,0.0001101,2]
[346616137,1735127441402,-1182.22,0.0001101,2]
[346616138,1735127441411,-670.59,0.0001101,2]
[346616139,1735127441421,-500.0,0.0001101,2]
[346616140,1735127441431,-500.0,0.0001101,2]
[346616141,1735127441440,-500.0,0.0001101,2]
[346616142,1735127441450,-500.0,0.0001101,2]
[346616143,1735127441459,-500.0,0.0001101,2]
[346616144,1735127441468,-500.0,0.0001101,2]
[346616145,1735127441480,-500.0,0.0001101,2]
[346616146,1735127441490,-150.0,0.0001101,2]
[346616147,1735127441499,-500.0,0.0001101,2]
[346616148,1735127441509,-5360.85,0.0001101,2]
[346616149,1735127441518,-5000.0,0.0001101,2]
[346616150,1735127441528,-576.57,0.0001101,2]
[346616151,1735127441537,-500.0,0.0001101,2]
[346616152,1735127441548,-500.0,0.0001101,2]
[346616153,1735127441559,-500.0,0.0001101,2]
[346616154,1735127441571,-500.0,0.0001101,2]
[346616155,1735127441581,-1223.6,0.0001101,2]
[346616156,1735127441591,-500.0,0.0001101,2]
[346616157,1735127441600,-500.0,0.0001101,2]
[346616158,1735127441611,-500.0,0.0001101,2]
[346616159,1735127441620,-500.0,0.0001101,2]
[346616160,1735127441630,-500.0,0.0001101,2]
[346616161,1735127441640,-500.0,0.0001101,2]
[346616162,1735127441651,-563.31,0.0001101,2]
[346616163,1735127441662,-500.0,0.0001101,2]
[346616164,1735127441671,-500.0,0.0001101,2]
[346616165,1735127441681,-500.0,0.0001101,2]
[346616166,1735127441691,-500.0,0.0001101,2]
[346616167,1735127441701,-500.0,0.0001101,2]
[346616168,1735127441710,-500.0,0.0001101,2]
[346616169,1735127441720,-3239.46,0.0001101,2]
[346616170,1735127441731,-500.0,0.0001101,2]
[346616171,1735127441741,-500.0,0.0001101,2]
[346616172,1735127441751,-684.04,0.0001101,2]
[346616173,1735127441760,-500.0,0.00011011,2]
[346616174,1735127441770,-500.0,0.00011011,2]
[346616175,1735127441780,-500.0,0.00011011,2]
[346616176,1735127441789,-500.0,0.00011011,2]
[346616177,1735127441799,-500.0,0.00011011,2]
[346616178,1735127441808,-500.0,0.00011011,2]
[346616179,1735127441818,-500.0,0.00011011,2]
[346616180,1735127441828,-500.0,0.00011011,2]
[346616181,1735127441838,-500.0,0.00011011,2]
[346616182,1735127441847,-500.0,0.00011011,2]
[346616183,1735127441857,-500.0,0.00011011,2]
[346616184,1735127441866,-500.0,0.00011011,2]
[346616185,1735127441876,-500.0,0.00011011,2]
[346616186,1735127441886,-500.0,0.00011011,2]
[346616187,1735127441895,-500.0,0.00011011,2]
[346616188,1735127441905,-538.33,0.00011011,2]
[346616189,1735127441914,-500.0,0.00011011,2]
[346616190,1735127441924,-500.0,0.00011011,2]
[346616191,1735127441934,-500.0,0.00011011,2]
[346616192,1735127441944,-683.15,0.00011011,2]
[346616193,1735127441953,-510.99,0.00011011,2]
[346616194,1735127441963,-1663.82,0.00011011,2]
[346616195,1735127441973,-609.52,0.00011011,2]
[346616196,1735127441983,-1003.15,0.00011011,2]
[346616197,1735127441993,-500.0,0.00011011,2]
[346616198,1735127442002,-500.0,0.00011011,2]
[346616199,1735127442012,-1248.44,0.00011011,2]
[346616200,1735127442021,-500.0,0.00011011,2]
[346616201,1735127442031,-500.0,0.00011011,2]
[346616202,1735127442041,-638.36,0.00011011,2]
[346616203,1735127442050,-500.0,0.00011011,2]
[346616204,1735127442060,-500.0,0.00011011,2]
[346616205,1735127442070,-500.0,0.00011019,2]
[346616206,1735127442080,-500.0,0.00011019,2]
[346616207,1735127442090,-203.12,0.0001102,2]
[346616208,1735127442100,-200.0,0.0001102,2]
[346616209,1735127442109,-500.0,0.00011064,2]
[346616210,1735127442119,-500.0,0.00011064,2]
[346616211,1735127442129,-500.0,0.00011064,2]
[346616212,1735127442138,-500.0,0.00011064,2]
[346616213,1735127442148,-500.0,0.00011064,2]
[346616214,1735127442157,-500.0,0.00011064,2]
[346616215,1735127442166,-500.0,0.00011064,2]
[346616216,1735127442175,-500.0,0.00011064,2]
[346616217,1735127442184,-500.0,0.00011064,2]
[346616218,1735127442193,-500.0,0.00011064,2]
[346616219,1735127442203,-500.0,0.00011064,2]
[346616220,1735127442212,-500.0,0.00011064,2]
[346616221,1735127442221,-928.86,0.00011064,2]
[346616222,1735127442231,-500.0,0.00011064,2]
[346616223,1735127442240,-833.33,0.00011064,2]
[346616224,1735127442249,-500.0,0.00011064,2]
[346616225,1735127442259,-500.0,0.00011064,2]
[346616226,1735127442269,-896.31,0.00011064,2]
[346616227,1735127442280,-592.37296094,0.00011064,2]
[346616228,1735127442290,-500.0,0.00011064,2]
[346616229,1735127442300,-2655.7,0.00011064,2]
[346616230,1735127442310,-757.29,0.00011064,2]
[346616231,1735127442320,-500.0,0.00011064,2]
[346616232,1735127442331,-500.0,0.00011064,2]
[346616233,1735127442344,-4923.35,0.00011064,2]
[346616234,1735127442353,-572.89,0.00011064,2]
[346616235,1735127442363,-500.0,0.00011064,2]
[346616236,1735127442373,-500.0,0.00011064,2]
[346616237,1735127442382,-525.33,0.00011064,2]
[346616238,1735127442393,-543.83,0.00011064,2]
[346616239,1735127442404,-500.0,0.00011064,2]
[346616240,1735127442413,-243.094773,0.00011064,2]
[346616241,1735127442423,-500.0,0.00011064,2]
[346616242,1735127442432,-632.78,0.00011064,2]
[346616243,1735127442442,-500.0,0.00011064,2]
[346616245,1735127442451,-219.681786,0.00011064,2]
[346616246,1735127442461,-1569.97,0.00011064,2]
[346616247,1735127442471,-166.78164964,0.00011064,2]
[346616249,1735127442481,-832.91,0.00011064,2]
[346616250,1735127442490,-500.0,0.00011064,2]
[346616251,1735127442500,-500.0,0.00011064,2]
[346616252,1735127442510,-500.0,0.00011064,2]
[346616253,1735127442519,-500.0,0.00011064,2]
[346616254,1735127442528,-500.0,0.00011064,2]
[346616255,1735127442538,-1793.93,0.00011064,2]
[346616257,1735127442547,-1761.25,0.00011064,2]
[346616259,1735127442557,-500.0,0.00011064,2]
[346616260,1735127442567,-610.53,0.00011064,2]
[346616263,1735127442579,-671.69,0.00011064,2]
[346616264,1735127442588,-500.0,0.00011064,2]
[346616265,1735127442598,-500.0,0.00011064,2]
[346616266,1735127442607,-500.0,0.00011064,2]
[346616267,1735127442617,-2899.28,0.00011064,2]
[346616268,1735127442626,-500.0,0.00011064,2]
[346616269,1735127442635,-500.0,0.00011064,2]
[346616270,1735127442645,-2172.9,0.00011064,2]
[346616271,1735127442655,-548.76,0.00011064,2]
[346616272,1735127442664,-500.0,0.00011064,2]
[346616273,1735127442673,-500.0,0.00011064,2]
[346616274,1735127442682,-500.0,0.00011064,2]
[346616275,1735127442691,-500.0,0.00011064,2]
[346616276,1735127442701,-500.0,0.00011064,2]
[346616277,1735127442710,-500.0,0.00011064,2]
[346616278,1735127442720,-1309.3,0.00011064,2]
[346616279,1735127442731,-500.0,0.00011064,2]
[346616280,1735127442742,-759.69,0.00011064,2]
[346616281,1735127442751,-500.0,0.00011064,2]
[346616282,1735127442760,-6709.46,0.00011064,2]
[346616283,1735127442769,-500.0,0.00011064,2]
[346616284,1735127442779,-500.0,0.00011064,2]
[346616285,1735127442788,-500.0,0.00011064,2]
[346616286,1735127442798,-500.0,0.00011064,2]
[346616287,1735127442807,-500.0,0.00011064,2]
[346616288,1735127442816,-500.0,0.00011064,2]
[346616289,1735127442826,-500.0,0.00011064,2]
[346616290,1735127442836,-500.0,0.00011064,2]
[346616291,1735127442845,-500.0,0.00011064,2]
[346616292,1735127442855,-500.0,0.00011064,2]
[346616293,1735127442865,-500.0,0.00011064,2]
[346616294,1735127442875,-500.0,0.00011064,2]
[346616295,1735127442886,-500.0,0.00011064,2]
[346616296,1735127442895,-500.0,0.00011064,2]
[346616297,1735127442904,-200.0,0.0001113,2]
[346616298,1735127442914,-9133.33677816,0.00011173,2]
[346616299,1735127442922,-184876.81596481,0.00011174,2]
[346616300,1735127443523,-500.0,0.0001101,2]
[346616301,1735127443532,-500.0,0.00011064,2]
[346616302,1735127443541,-849147.02485967,0.00011174,2]
[346616303,1735127443551,-500.0,0.00011174,2]
[346616304,1735127443559,-500.0,0.00011174,2]
[346616305,1735127443569,-500.0,0.00011174,2]
[346616306,1735127443580,-500.0,0.00011174,2]
[346616307,1735127443588,-548.72,0.00011174,2]
[346616308,1735127443597,-500.0,0.00011174,2]
[346616309,1735127443607,-500.0,0.00011174,2]
[346616310,1735127443616,-500.0,0.00011174,2]
[346616311,1735127443626,-500.0,0.00011174,2]
[346616312,1735127443636,-500.0,0.00011174,2]
[346616313,1735127443647,-500.0,0.00011174,2]
[346616314,1735127443656,-500.0,0.00011174,2]
[346616315,1735127443666,-500.0,0.00011174,2]
[346616316,1735127443675,-516.07,0.00011174,2]
[346616317,1735127443684,-500.0,0.00011174,2]
[346616318,1735127443693,-500.0,0.00011174,2]
[346616319,1735127443702,-500.0,0.00011174,2]
[346616320,1735127443712,-633.98558421,0.00011174,2]
[346616321,1735127443721,-500.0,0.00011174,2]
[346616322,1735127443732,-500.0,0.00011174,2]
[346616323,1735127443742,-500.0,0.00011174,2]
[346616324,1735127443752,-629.62,0.00011174,2]
[346616325,1735127443761,-500.0,0.00011174,2]
[346616326,1735127443770,-500.0,0.00011174,2]
[346616327,1735127443780,-500.0,0.00011174,2]
[346616328,1735127443789,-500.82,0.00011174,2]
[346616329,1735127443798,-500.0,0.00011174,2]
[346616330,1735127443807,-500.0,0.00011174,2]
[346616331,1735127443816,-868.96,0.00011174,2]
[346616332,1735127443825,-500.0,0.00011174,2]
[346616333,1735127443834,-614.43,0.00011174,2]
[346616334,1735127443843,-500.0,0.00011174,2]
[346616335,1735127443852,-500.0,0.00011174,2]
[346616336,1735127443861,-500.0,0.00011174,2]
[346616337,1735127443871,-500.0,0.00011174,2]
[346616338,1735127443883,-500.0,0.00011174,2]
[346616339,1735127443892,-500.0,0.00011174,2]
[346616340,1735127443902,-500.0,0.00011174,2]
[346616341,1735127443912,-500.0,0.00011174,2]
[346616342,1735127443922,-500.0,0.00011174,2]
[346616343,1735127443933,-500.0,0.00011174,2]
[346616344,1735127443948,-500.0,0.00011174,2]
[346616345,1735127443958,-364.28649021,0.00011174,2]
[346616346,1735127443967,-536.85,0.00011174,2]
[346616347,1735127443976,-500.0,0.00011174,2]
[346616348,1735127443988,-500.0,0.00011174,2]
[346616349,1735127443997,-500.0,0.00011174,2]
[346616350,1735127444006,-500.0,0.00011174,2]
[346616351,1735127444015,-500.0,0.00011174,2]
[346616352,1735127444024,-500.0,0.00011174,2]
[346616353,1735127444035,-500.0,0.00011174,2]
[346616354,1735127444044,-653.26,0.00011174,2]
[346616355,1735127444053,-500.0,0.00011174,2]
[346616356,1735127444063,-500.0,0.00011174,2]
[346616357,1735127444071,-500.0,0.00011174,2]
[346616358,1735127444081,-500.0,0.00011174,2]
[346616359,1735127444091,-500.0,0.00011174,2]
[346616360,1735127444100,-811.95,0.00011174,2]
[346616361,1735127444109,-660.43,0.00011174,2]
[346616362,1735127444118,-500.0,0.00011174,2]
[346616363,1735127444127,-853.07,0.00011174,2]
[346616364,1735127444137,-882.1,0.00011174,2]
[346616365,1735127444146,-500.0,0.00011174,2]
[346616366,1735127444155,-1100.96,0.00011174,2]
[346616367,1735127444164,-500.0,0.00011174,2]
[346616368,1735127444174,-635.49,0.00011174,2]
[346616369,1735127444183,-500.0,0.00011174,2]
[346616370,1735127444192,-659.11,0.00011174,2]
[346616371,1735127444201,-2784.47,0.00011174,2]
[346616372,1735127444210,-547.57294897,0.00011174,2]
[346616373,1735127444219,-560.83,0.00011174,2]
[346616374,1735127444228,-529.17,0.00011174,2]
[346616375,1735127444239,-1887.14,0.00011174,2]
[346616376,1735127444248,-500.0,0.00011174,2]
[346616377,1735127444257,-500.0,0.00011174,2]
[346616378,1735127444266,-1073.5,0.00011174,2]
[346616379,1735127444275,-923.69,0.00011174,2]
[346616380,1735127444284,-500.0,0.00011174,2]
[346616381,1735127444293,-871.16,0.00011174,2]
[346616382,1735127444302,-871.29,0.00011174,2]
[346616383,1735127444311,-997.59,0.00011174,2]
[346616384,1735127444319,-500.0,0.00011174,2]
[346616385,1735127444328,-500.0,0.00011174,2]
[346616386,1735127444337,-500.0,0.00011174,2]
[346616387,1735127444346,-1899.52,0.00011174,2]
[346616388,1735127444355,-1011.4,0.00011174,2]
[346616389,1735127444365,-500.0,0.00011174,2]
[346616390,1735127444374,-1356.28,0.00011174,2]
[346616391,1735127444383,-612.88,0.00011174,2]
[346616392,1735127444392,-500.0,0.00011174,2]
[346616393,1735127444402,-500.0,0.00011174,2]
[346616394,1735127444411,-1419.61,0.00011174,2]
[346616395,1735127444420,-1207.47,0.00011174,2]
[346616396,1735127444429,-500.0,0.00011174,2]
[346616397,1735127444438,-500.0,0.00011174,2]
[346616398,1735127444447,-500.0,0.00011174,2]
[346616399,1735127444459,-543.33,0.00011174,2]
[346616400,1735127444468,-500.0,0.00011174,2]
[346616401,1735127444478,-500.0,0.00011174,2]
[346616402,1735127444488,-500.0,0.00011174,2]
[346616403,1735127444496,-500.0,0.00011174,2]
[346616404,1735127444505,-500.0,0.00011174,2]
[346616405,1735127444514,-500.0,0.00011174,2]
[346616406,1735127444523,-500.0,0.00011174,2]
[346616407,1735127444532,-500.0,0.00011174,2]
[346616408,1735127444541,-500.0,0.00011174,2]
[346616409,1735127444550,-500.0,0.00011174,2]
[346616410,1735127444559,-824.81,0.00011174,2]
[346616411,1735127444569,-500.0,0.00011174,2]
[346616412,1735127444581,-1040.1,0.00011174,2]
[346616413,1735127444590,-500.0,0.00011174,2]
[346616414,1735127444600,-872.12,0.00011174,2]
[346616415,1735127444611,-584.82,0.00011174,2]
[346616416,1735127444620,-1928.28943376,0.00011183,2]
[346616417,1735127444629,-479.01587162,0.00011184,2]
[346616418,1735127444638,-361.96,0.00011229,2]
[346616419,1735127444648,-200.0,0.00011242,2]
[346616420,1735127444658,-429.10429252,0.00011268,2]
[346616421,1735127444667,-500.0,0.00011283,2]
[346616422,1735127444676,-742.98,0.00011283,2]
[346616423,1735127444686,-992.77,0.00011283,2]
[346616424,1735127444695,-2012.95,0.00011283,2]
[346616425,1735127444704,-1891.68,0.00011283,2]
[346616426,1735127444714,-16159.23,0.00011283,2]
[346616427,1735127444723,-1453.31,0.00011283,2]
[346616428,1735127444732,-761.63,0.00011283,2]
[346616429,1735127444742,-545.79,0.00011283,2]
[346616430,1735127444751,-1354.29,0.00011283,2]
[346616431,1735127444760,-14537.19,0.00011283,2]
[346616432,1735127444770,-500.0,0.00011283,2]
[346616433,1735127444779,-1480.31,0.00011283,2]
[346616434,1735127444788,-1290.32,0.00011283,2]
[346616435,1735127444798,-596.39,0.00011283,2]
[346616436,1735127444807,-2589.36,0.00011283,2]
[346616437,1735127444817,-500.0,0.00011283,2]
[346616438,1735127444826,-500.0,0.00011283,2]
[346616439,1735127444835,-1000.0,0.00011283,2]
[346616440,1735127444844,-1079.04,0.00011283,2]
[346616441,1735127444853,-656.4,0.00011283,2]
[346616442,1735127444863,-535.67208723,0.00011284,2]
[346616443,1735127444872,-500.0,0.00011284,2]
[346616444,1735127444881,-500.0,0.00011284,2]
[346616445,1735127444891,-500.0,0.00011284,2]
[346616446,1735127444900,-520.55,0.00011284,2]
[346616447,1735127444910,-500.0,0.00011284,2]
[346616448,1735127444920,-500.0,0.00011284,2]
[346616449,1735127444929,-500.0,0.00011284,2]
[346616450,1735127444938,-500.0,0.00011284,2]
[346616451,1735127444947,-535.18802074,0.00011284,2]
[346616452,1735127444957,-563.72,0.00011284,2]
[346616453,1735127444966,-500.0,0.00011284,2]
[346616454,1735127444975,-500.0,0.00011284,2]
[346616455,1735127444988,-500.0,0.00011284,2]
[346616456,1735127444998,-500.0,0.00011284,2]
[346616457,1735127445007,-500.0,0.00011284,2]
[346616458,1735127445016,-500.0,0.00011284,2]
[346616459,1735127445026,-500.0,0.00011284,2]
[346616460,1735127445035,-500.0,0.00011284,2]
[346616461,1735127445044,-500.0,0.00011284,2]
[346616462,1735127445053,-500.0,0.00011284,2]
[346616463,1735127445062,-553.83,0.00011284,2]
[346616464,1735127445071,-500.0,0.00011284,2]
[346616465,1735127445081,-500.0,0.00011284,2]
[346616466,1735127445090,-401.96729752,0.00011284,2]
[346616467,1735127445099,-500.0,0.00011284,2]
[346616468,1735127445108,-500.0,0.00011284,2]
[346616469,1735127445117,-613.47,0.00011284,2]
[346616470,1735127445126,-595.49,0.00011284,2]
[346616471,1735127445135,-500.0,0.00011284,2]
[346616472,1735127445144,-500.0,0.00011284,2]
[346616473,1735127445153,-500.0,0.00011284,2]
[346616474,1735127445163,-500.0,0.00011284,2]
[346616475,1735127445172,-1086.12,0.00011284,2]
[346616476,1735127445181,-500.0,0.00011284,2]
[346616477,1735127445190,-705.77,0.00011284,2]
[346616478,1735127445200,-500.0,0.00011284,2]
[346616479,1735127445209,-500.0,0.00011284,2]
[346616480,1735127445218,-500.0,0.00011284,2]
[346616481,1735127445227,-500.0,0.00011284,2]
[346616482,1735127445242,-500.0,0.00011284,2]
[346616483,1735127445251,-573.15,0.00011284,2]
[346616484,1735127445260,-500.0,0.00011284,2]
[346616485,1735127445269,-500.0,0.00011284,2]
[346616486,1735127445279,-500.0,0.00011284,2]
[346616487,1735127445287,-500.0,0.00011284,2]
[346616488,1735127445297,-500.0,0.00011284,2]
[346616489,1735127445306,-500.0,0.00011284,2]
[346616490,1735127445316,-500.0,0.00011284,2]
[346616491,1735127445325,-500.0,0.00011284,2]
[346616492,1735127445334,-611.09964509,0.00011284,2]
[346616493,1735127445343,-500.0,0.00011284,2]
[346616494,1735127445352,-500.0,0.00011284,2]
[346616495,1735127445361,-500.0,0.00011284,2]
[346616496,1735127445370,-500.0,0.00011284,2]
[346616498,1735127445380,-500.0,0.00011284,2]
[346616500,1735127445389,-500.0,0.00011284,2]
[346616501,1735127445398,-500.0,0.00011284,2]
[346616502,1735127445407,-500.0,0.00011284,2]
[346616503,1735127445416,-652.22,0.00011284,2]
[346616504,1735127445425,-500.0,0.00011284,2]
[346616505,1735127445435,-500.0,0.00011284,2]
[346616506,1735127445445,-647.3,0.00011284,2]
[346616507,1735127445454,-500.0,0.00011284,2]
[346616509,1735127445465,-500.0,0.00011284,2]
[346616510,1735127445474,-971.03,0.00011284,2]
[346616511,1735127445485,-500.0,0.00011284,2]
[346616512,1735127445494,-500.0,0.00011284,2]
[346616513,1735127445503,-500.0,0.00011284,2]
[346616514,1735127445512,-500.0,0.00011284,2]
[346616515,1735127445522,-500.0,0.00011284,2]
[346616516,1735127445531,-608.5,0.00011284,2]
[346616517,1735127445540,-500.0,0.00011284,2]
[346616518,1735127445549,-500.0,0.00011284,2]
[346616519,1735127445559,-500.0,0.00011284,2]
[346616521,1735127445571,-500.0,0.00011284,2]
[346616523,1735127445581,-500.0,0.00011284,2]
[346616524,1735127445591,-548.75,0.00011284,2]
[346616527,1735127445600,-500.0,0.00011284,2]
[346616529,1735127445611,-500.0,0.00011284,2]
[346616531,1735127445620,-500.0,0.00011284,2]
[346616533,1735127445629,-535.06,0.00011284,2]
[346616535,1735127445638,-500.0,0.00011284,2]
[346616537,1735127445648,-500.0,0.00011284,2]
[346616539,1735127445658,-500.0,0.00011284,2]
[346616541,1735127445668,-500.0,0.00011284,2]
[346616543,1735127445677,-537.48,0.00011284,2]
[346616545,1735127445686,-500.0,0.00011284,2]
[346616547,1735127445695,-509.17,0.00011284,2]
[346616549,1735127445705,-500.0,0.00011284,2]
[346616551,1735127445714,-500.0,0.00011284,2]
[346616553,1735127445723,-500.0,0.00011284,2]
[346616555,1735127445733,-500.0,0.00011284,2]
[346616557,1735127445743,-500.0,0.00011284,2]
[346616558,1735127445752,-560.69,0.00011284,2]
[346616559,1735127445761,-500.0,0.00011284,2]
[346616560,1735127445770,-500.0,0.00011284,2]
[346616561,1735127445779,-840.12,0.00011284,2]
[346616562,1735127445788,-500.0,0.00011284,2]
[346616563,1735127445797,-500.0,0.00011284,2]
[346616564,1735127445807,-500.0,0.00011284,2]
[346616565,1735127445816,-500.0,0.00011284,2]
[346616566,1735127445825,-500.0,0.00011284,2]
[346616567,1735127445834,-500.0,0.00011284,2]
[346616568,1735127445843,-500.0,0.00011284,2]
[346616569,1735127445852,-693.24,0.00011284,2]
[346616570,1735127445861,-500.0,0.00011284,2]
[346616571,1735127445871,-629.87,0.00011284,2]
[346616572,1735127445880,-500.0,0.00011284,2]
[346616573,1735127445889,-816.1,0.00011284,2]
[346616574,1735127445898,-500.0,0.00011284,2]
[346616575,1735127445907,-776.37,0.00011284,2]
[346616576,1735127445916,-500.0,0.00011284,2]
[346616577,1735127445925,-500.0,0.00011284,2]
[346616578,1735127445934,-500.0,0.00011284,2]
[346616579,1735127445944,-500.0,0.00011284,2]
[346616580,1735127445953,-500.0,0.00011284,2]
[346616581,1735127445962,-506.99,0.00011284,2]
[346616582,1735127445972,-500.0,0.00011284,2]
[346616583,1735127445982,-500.0,0.00011284,2]
[346616584,1735127445992,-719.32,0.00011284,2]
[346616585,1735127446001,-503.97,0.00011284,2]
[346616586,1735127446010,-500.0,0.00011284,2]
[346616587,1735127446020,-500.0,0.00011284,2]
[346616588,1735127446029,-500.0,0.00011284,2]
[346616589,1735127446039,-500.0,0.00011284,2]
[346616590,1735127446048,-799.41,0.00011284,2]
[346616591,1735127446057,-500.0,0.00011284,2]
[346616593,1735127446066,-500.0,0.00011284,2]
[346616595,1735127446075,-828.69,0.00011284,2]
[346616596,1735127446084,-1353.54,0.00011284,2]
[346616597,1735127446093,-500.0,0.00011284,2]
[346616598,1735127446102,-500.0,0.00011284,2]
[346616599,1735127446111,-500.0,0.00011284,2]
[346616600,1735127446120,-883.71,0.00011284,2]
[346616601,1735127446130,-500.0,0.00011284,2]
[346616602,1735127446139,-500.0,0.00011284,2]
[346616603,1735127446148,-871.34,0.00011284,2]
[346616604,1735127446157,-500.0,0.00011284,2]
[346616605,1735127446167,-500.0,0.00011284,2]
[346616606,1735127446176,-500.0,0.00011284,2]
[346616607,1735127446185,-500.0,0.00011284,2]